bitfinex-derivatives/quotes_ETHF0:USTF0_20251012
["timestamp","ask_amount","ask_price","bid_price","bid_amount"]
[1760284259870,2.6221924,4034.1,4034.0,6.5606]
[1760284260071,0.03379613,4034.1,4034.0,3.2078]
[1760284260270,0.03379613,4034.1,4034.0,7.8383]
[1760284266187,0.03379613,4034.1,4034.0,10.03301941]
[1760284266986,0.03379613,4034.1,4034.0,7.8383]
[1760284267886,0.03379613,4034.1,4034.0,10.03381416]
[1760284268184,0.03379613,4034.1,4034.0,6.5606]
[1760284268384,2.74918599,4034.1,4034.0,3.2078]
[1760284268683,0.03379613,4034.1,4034.0,7.7664]
[1760284268886,40.83379613,4034.1,4034.0,9.52349527]
[1760284269477,0.03379613,4034.1,4034.0,9.52349527]
[1760284269681,0.47976613,4034.1,4034.0,9.96947527]
[1760284269883,0.47976613,4034.1,4034.0,8.21238]
[1760284269884,0.03379613,4034.1,4034.0,8.21238]
[1760284270675,0.00264744,4034.9,4034.8,3.68629]
[1760284270886,0.00264744,4034.9,4034.8,6.89409]
[1760284271884,0.00264744,4034.9,4034.8,9.09013397]
[1760284272390,0.00264744,4034.9,4034.8,6.89409]
[1760284275694,11.51831,4036.4,4035.8,0.44578]
[1760284275890,11.51831,4036.4,4036.0,3.2078]
[1760284275891,0.44575,4036.1,4036.0,3.2078]
[1760284276395,3.23002168,4036.1,4036.0,3.2078]
[1760284276598,44.03308265,4036.1,4036.0,3.21035644]
[1760284277188,44.03308265,4036.1,4036.0,0.00255644]
[1760284277695,47.3175978,4036.1,4036.0,0.00255644]
[1760284279189,0.4458,4035.6,4035.5,1.75565656]
[1760284279393,0.44592,4034.5,4034.4,3.2078]
[1760284279692,3.2390958,4034.5,4034.4,3.2078]
[1760284279909,44.0390958,4034.5,4034.4,3.2078]
[1760284280289,44.0390958,4034.5,4034.4,3.21034067]
[1760284280593,43.5931758,4034.5,4034.4,3.21034067]
[1760284280794,0.88792889,4037.2,4034.4,3.21034067]
[1760284280795,4.32526097,4036.1,4034.6,3.2404]
[1760284280993,4.32526097,4036.1,4035.5,3.68621]
[1760284280994,0.44578,4035.8,4035.5,3.68621]
[1760284281299,43.8921473,4035.8,4035.5,1.3182]
[1760284281490,40.8,4035.8,4035.6,0.4458]
[1760284281685,2.62091261,4035.7,4035.6,0.4458]
[1760284282297,2.62091261,4035.7,4035.6,3.6862]
[1760284282795,0.00306097,4036.1,4035.4,5.4023707]
[1760284282997,0.00306097,4036.1,4036.0,3.2078]
[1760284283498,2.83743973,4036.1,4036.0,3.2078]
[1760284283992,0.22,4037.3,4037.2,3.68603]
[1760284284197,0.88792889,4039.5,4037.2,3.68603]
[1760284284198,3.2078,4038.7,4038.0,0.44553]
[1760284284492,3.2078,4038.7,4037.5,5.59191198]
[1760284284493,2.82906058,4037.8,4037.5,3.2404]
[1760284284698,2.82906058,4037.8,4037.6,0.44557]
[1760284284894,0.44551,4038.3,4037.8,0.44556]
[1760284285095,3.2078,4038.7,4037.5,3.2404]
[1760284285096,2.82906058,4037.7,4037.6,0.00191764]
[1760284285297,2.82906058,4037.7,4037.6,3.24231764]
[1760284285601,0.00313173,4038.3,4038.1,0.44553]
[1760284285798,0.00313173,4038.3,4038.1,3.65333]
[1760284286091,2.72369423,4038.2,4038.1,3.65333]
[1760284286289,43.52369423,4038.2,4038.1,3.65333]
[1760284286491,43.52369423,4038.2,4038.1,3.2078]
[1760284286994,43.52369423,4038.2,4037.6,3.20971764]
[1760284287294,0.44554,4038.0,4037.6,0.00191764]
[1760284287493,46.7587788,4038.2,4037.6,0.00191764]
[1760284287494,0.44553,4038.1,4037.6,0.00191764]
[1760284287796,2.63335637,4037.9,4037.8,3.2404]
[1760284287989,2.63335637,4038.0,4037.9,3.68595]
[1760284288193,2.63335637,4038.1,4037.9,3.68595]
[1760284288392,40.8,4038.2,4037.9,3.68595]
[1760284288393,41.24552,4038.2,4037.9,3.2404]
[1760284288692,3.12022991,4038.1,4037.8,3.2078]
[1760284288889,2.67469991,4038.1,4037.8,3.65336]
[1760284289091,0.44555,4038.0,4037.8,3.2078]
[1760284289489,2.87461494,4037.9,4037.8,3.65335]
[1760284289996,3.32015494,4038.0,4037.8,3.2078]
[1760284290201,41.24552,4038.2,4037.8,3.2078]
[1760284290400,40.8,4038.2,4037.8,3.2078]
[1760284290698,0.13027543,4038.1,4038.0,5.00413]
[1760284290998,0.00313173,4038.3,4038.2,3.68592]
[1760284291599,2.86663945,4038.3,4038.1,0.44552]
[1760284291796,2.86663945,4038.3,4038.1,2.19559989]
[1760284291997,2.86663945,4038.3,4037.8,6.4482]
[1760284291998,0.44552,4038.2,4037.8,6.4482]
[1760284292298,2.63512017,4038.1,4038.0,0.44553]
[1760284292500,3.08065017,4038.1,4037.8,6.4482]
[1760284292706,0.00313173,4038.3,4037.8,6.4482]
[1760284292707,0.44554,4038.0,4037.8,3.2078]
[1760284292897,3.08066017,4038.0,4037.8,3.2078]
[1760284293201,3.26251731,4038.2,4037.8,3.65336]
[1760284293407,0.44553,4038.1,4037.8,3.2078]
[1760284293702,3.18750599,4038.0,4037.8,3.2078]
[1760284294099,0.44552,4038.2,4037.9,0.44554]
[1760284294402,0.44552,4038.2,4037.8,3.2078]
[1760284294403,2.57856745,4038.2,4037.8,3.2078]
[1760284294600,0.44554,4038.0,4037.8,3.2078]
[1760284294904,2.57856745,4037.9,4037.8,3.2078]
[1760284295302,3.02409745,4038.1,4037.8,3.2078]
[1760284295503,2.72853137,4038.0,4037.8,3.2078]
[1760284295809,0.44554,4038.0,4037.8,3.2078]
[1760284296104,3.17407137,4038.0,4037.8,3.2078]
[1760284296499,3.17407137,4038.0,4037.8,6.6886]
[1760284296804,40.8,4037.9,4037.8,3.2078]
[1760284296997,3.17407137,4038.0,4037.9,3.92635]
[1760284296998,2.72853137,4038.0,4037.9,3.92635]
[1760284297202,0.00313173,4038.3,4038.1,0.44552]
[1760284297398,0.00313173,4038.3,4038.2,3.4808]
[1760284297997,0.00313173,4038.3,4038.2,5.23087989]
[1760284298198,0.00313173,4038.3,4038.2,3.4808]
[1760284298405,0.00313173,4038.3,4038.2,5.23087989]
[1760284300303,0.00313173,4038.3,4038.2,3.4808]
[1760284302504,0.00313173,4038.3,4038.2,5.23087989]
[1760284302703,0.00313173,4038.3,4038.2,3.92632]
[1760284305104,0.44545,4038.8,4038.7,0.44545]
[1760284305313,0.44545,4038.8,4038.7,7.13405]
[1760284305607,2.68483839,4038.9,4038.8,0.44544]
[1760284305808,0.44544,4038.9,4038.8,3.92624]
[1760284306002,40.8,4039.1,4038.9,0.44544]
[1760284306204,2.68483839,4039.0,4038.9,3.92624]
[1760284306407,40.80279748,4039.1,4039.0,0.44543]
[1760284306408,41.24821748,4039.1,4039.0,0.44543]
[1760284306814,44.02502675,4039.1,4039.0,0.44543]
[1760284307106,43.57960675,4039.1,4038.7,6.6886]
[1760284307609,43.57960675,4039.1,4038.7,3.2078]
[1760284307610,0.44544,4038.9,4038.7,3.2078]
[1760284307807,0.44544,4038.9,4038.8,3.92625]
[1760284307998,0.00279748,4039.1,4039.0,5.21543]
[1760284308508,2.71077004,4039.1,4039.0,5.21543]
[1760284309100,0.00279748,4039.1,4039.0,5.21543]
[1760284312206,0.00279748,4039.1,4039.0,6.96299579]
[1760284312410,0.00279748,4039.1,4039.0,4.77]
[1760284312905,0.00279748,4039.1,4038.3,1.74756579]
[1760284312906,0.44548,4038.5,4038.3,1.74756579]
[1760284313208,0.44556,4037.8,4037.2,6.6886]
[1760284313411,41.24556,4037.8,4037.2,6.6886]
[1760284313605,2.77573158,4037.7,4037.2,6.6886]
[1760284313805,2.79528184,4037.7,4037.2,7.13422]
[1760284314010,2.79528184,4037.7,4037.2,3.2078]
[1760284314216,1.11402,4037.5,4036.6,5.40343873]
[1760284314413,0.44567,4036.8,4036.6,3.2078]
[1760284314610,0.44569,4036.6,4036.4,3.4808]
[1760284314905,0.01955026,4036.5,4036.0,3.2078]
[1760284315111,0.44574,4036.3,4036.0,3.20959497]
[1760284315301,0.44574,4036.2,4036.0,3.20959497]
[1760284315504,3.19654583,4036.2,4036.0,3.20959497]
[1760284315714,0.01955026,4036.1,4036.0,3.20959497]
[1760284316008,2.79888131,4036.1,4036.0,0.00179497]
[1760284316406,43.59888131,4036.1,4036.0,0.00179497]
[1760284316607,43.59888131,4036.1,4034.9,3.2078]
[1760284316608,1.11443,4035.9,4034.9,3.2078]
[1760284316811,0.46538026,4035.4,4034.9,3.2078]
[1760284317004,0.44585,4035.3,4034.9,6.6886]
[1760284317210,0.44585,4035.2,4034.9,3.2078]
[1760284317405,0.44586,4035.1,4034.9,3.2078]
[1760284317613,2.70302291,4035.1,4034.9,3.21028125]
[1760284317814,0.01955026,4035.0,4034.9,6.69108125]
[1760284318203,2.72257317,4035.0,4034.9,3.21028125]
[1760284318409,43.52257317,4035.0,4034.9,3.21028125]
[1760284319019,43.52257317,4035.0,4034.9,0.00248125]
[1760284319712,43.52257317,4035.0,4034.9,3.48328125]
[1760284320008,2.72257317,4035.0,4034.9,6.69108125]
[1760284320207,0.01955026,4035.0,4034.9,6.69108125]
[1760284320614,2.81793138,4035.0,4034.9,6.69108125]
[1760284320819,0.01955026,4035.0,4034.9,6.69108125]
[1760284321919,0.01955026,4035.0,4034.9,11.6041569]
[1760284322117,2.88630351,4035.0,4034.9,6.69108125]
[1760284322320,0.01955026,4035.0,4034.9,6.69108125]
[1760284324515,0.01955026,4035.0,4034.9,3.21028125]
[1760284324716,0.44593,4034.5,4034.3,3.2078]
[1760284324929,0.44593,4034.5,4034.4,3.3686]
[1760284325216,0.4459,4034.7,4034.4,3.3686]
[1760284325416,0.01955026,4035.0,4034.3,3.2078]
[1760284325417,3.17607472,4034.5,4034.3,6.5764]
[1760284325620,0.44593,4034.5,4034.3,3.2078]
[1760284325814,43.47385808,4034.4,4034.3,3.2098518]
[1760284327023,43.47385808,4034.4,4034.3,0.0020518]
[1760284327717,0.44606,4033.3,4033.2,3.2078]
[1760284327928,0.46561026,4033.3,4033.2,3.2078]
[1760284328116,0.44612,4032.8,4032.2,3.3686]
[1760284328311,5.81868985,4033.3,4032.2,3.3686]
[1760284328312,0.44615,4032.5,4032.2,3.3686]
[1760284328511,0.44933178,4032.5,4032.3,3.3686]
[1760284328712,2.71454353,4032.4,4032.3,3.3686]
[1760284328921,2.73409379,4032.4,4032.3,3.3686]
[1760284329313,3.18025379,4032.4,4032.2,0.00306488]
[1760284329514,0.01955026,4032.4,4032.3,3.3686]
[1760284331725,2.71496799,4032.4,4032.3,3.3686]
[1760284332318,3.16112799,4032.4,4032.2,0.00306488]
[1760284332517,3.16112799,4032.4,4031.0,3.2078]
[1760284332518,0.4463,4031.1,4031.0,3.2078]
[1760284332721,0.4463,4031.1,4030.1,3.2078]
[1760284332722,0.4464,4030.3,4030.1,3.2078]
[1760284332920,40.81955026,4030.2,4030.1,3.2078]
[1760284333221,43.47703737,4030.2,4030.1,3.2078]
[1760284333425,43.47703737,4030.2,4030.1,6.5793865]
[1760284333816,43.47703737,4030.2,4030.1,3.2107865]
[1760284334923,0.01955026,4030.2,4030.1,6.5793865]
[1760284335128,2.79848024,4030.2,4030.1,6.5793865]
[1760284335422,43.59848024,4030.2,4030.1,3.2107865]
[1760284335819,43.59848024,4030.2,4030.1,2.4216095]
[1760284336029,43.59848024,4030.2,4030.1,0.0029865]
[1760284336532,46.79029267,4030.2,4030.1,0.0029865]
[1760284336828,43.59848024,4030.2,4030.1,0.0029865]
[1760284337224,46.81732917,4030.2,4030.1,0.0029865]
[1760284337424,46.81774755,4030.2,4030.1,0.0029865]
[1760284338129,43.59889862,4030.2,4030.1,3.2107865]
[1760284339115,43.59889862,4030.2,4030.1,0.0029865]
[1760284339422,46.8802626,4030.2,4030.1,0.0029865]
[1760284340819,0.44646,4029.7,4029.6,3.2078]
[1760284341223,3.06577108,4029.7,4029.6,3.2078]
[1760284341528,2.63927972,4029.7,4029.6,6.5764]
[1760284341921,2.63927972,4029.7,4029.6,11.4923842]
[1760284342221,0.01698214,4029.7,4029.6,11.4923842]
[1760284342728,0.01698214,4029.7,4029.6,6.57930855]
[1760284345720,3.10221265,4029.7,4029.6,0.00290855]
[1760284346419,43.90221265,4029.7,4029.6,0.00290855]
[1760284347028,43.45575265,4029.7,4029.6,6.57930855]
[1760284347228,43.45575265,4029.7,4029.6,0.00290855]
[1760284347229,40.81698214,4029.7,4029.6,0.00290855]
[1760284347432,43.44710186,4029.7,4029.6,0.00290855]
[1760284348024,46.65661777,4029.7,4029.6,8.55e-06]
[1760284348336,46.67405289,4029.7,4029.6,8.55e-06]
[1760284352430,46.67625289,4029.7,4029.6,8.55e-06]
[1760284354831,46.67625289,4029.7,4028.6,2.99261855]
[1760284355034,3.67,4029.3,4028.8,0.44655]
[1760284355231,0.46394512,4029.2,4028.9,0.44654]
[1760284355431,6.35965869,4029.2,4028.9,0.44654]
[1760284355735,3.2235,4029.1,4029.0,0.44653]
[1760284355934,5.91314869,4029.2,4028.6,2.99261855]
[1760284355935,3.2235,4029.0,4028.8,0.44655]
[1760284356233,3.2235,4029.0,4028.9,0.42910488]
[1760284356646,0.00230497,4029.1,4029.0,1.339]
[1760284356937,0.00230497,4029.1,4029.0,10.15495753]
[1760284357136,3.2078,4030.0,4029.0,10.15495753]
[1760284357137,0.44636,4030.6,4029.6,3.2213]
[1760284357338,3.2235,4030.3,4030.2,3.2078]
[1760284357635,3.35027104,4030.3,4030.2,3.6542]
[1760284358034,3.35295787,4030.3,4030.2,3.6542]
[1760284358940,0.00268683,4030.3,4030.2,3.6542]
[1760284359832,3.22618683,4030.3,4030.2,3.6542]
[1760284360133,3.22618683,4030.3,4030.2,0.4464]
[1760284360732,3.22618683,4030.3,4030.2,3.6542]
[1760284361239,6.0640961,4030.3,4030.2,3.6542]
[1760284362540,6.0640961,4030.3,4030.2,3.2078]
[1760284363137,6.0640961,4030.3,4030.2,3.6542]
[1760284363837,2.8405961,4030.3,4029.7,3.2078]
[1760284364037,2.8405961,4030.3,4030.1,0.44641]
[1760284364038,3.225,4030.2,4030.1,0.44641]
[1760284364436,3.225,4030.2,4029.7,6.4205]
[1760284364437,0.00268683,4030.3,4030.2,3.6591]
[1760284364831,0.00268683,4030.3,4030.2,0.4464]
[1760284365041,3.22768683,4030.3,4030.2,0.4464]
[1760284365741,5.87005417,4030.3,4030.2,0.4464]
[1760284366844,5.87005417,4030.3,4030.2,6.8669]
[1760284366845,2.64505417,4030.3,4030.2,6.8669]
[1760284367034,43.44505417,4030.3,4030.2,6.8669]
[1760284367230,3.225,4030.8,4030.7,0.44634]
[1760284367439,3.225,4030.8,4030.7,3.65414]
[1760284367643,46.6663199,4030.8,4030.7,3.65414]
[1760284368239,2.64444684,4030.8,4030.7,6.86684]
[1760284368447,0.00312694,4030.8,4030.7,6.86684]
[1760284368649,3.225,4031.8,4031.7,0.44623]
[1760284368842,40.8,4031.8,4031.7,0.44623]
[1760284369049,43.63972331,4031.8,4031.7,3.65893]
[1760284369242,40.8,4031.8,4031.7,3.65893]
[1760284369446,6.4328,4032.6,4032.5,0.44614]
[1760284369747,6.4328,4033.1,4033.0,0.44609]
[1760284370044,2.70159394,4033.1,4033.0,8.21139]
[1760284370348,3.2078,4034.2,4033.4,1.11511]
[1760284370349,6.4328,4034.2,4033.4,1.11511]
[1760284370536,6.4328,4034.2,4034.1,0.44597]
[1760284370851,46.6769082,4034.2,4034.1,0.44597]
[1760284371047,49.9019082,4034.2,4034.1,0.44597]
[1760284371243,44.01012477,4034.2,4033.9,0.44599]
[1760284371448,3.225,4034.1,4034.0,0.44597]
[1760284371955,2.64389498,4034.1,4033.9,0.44599]
[1760284372147,3.225,4034.0,4033.9,0.44599]
[1760284372540,5.86889498,4034.0,4033.9,0.44599]
[1760284374247,3.225,4033.9,4033.7,0.44601]
[1760284374645,3.225,4033.9,4033.4,3.2127]
[1760284374646,1.0745,4033.5,4032.9,3.2078]
[1760284374844,3.225,4033.3,4032.9,3.2078]
[1760284375040,3.225,4033.2,4032.9,3.2078]
[1760284375352,3.225,4033.1,4032.9,3.2078]
[1760284375548,3.225,4033.1,4032.5,0.00251554]
[1760284375549,3.6711,4032.9,4032.5,0.00251554]
[1760284375950,2.69767653,4032.8,4032.5,0.00251554]
[1760284376445,3.225,4032.6,4032.5,0.00251554]
[1760284376651,5.92267653,4032.8,4032.6,0.44613]
[1760284376951,1.11722477,4034.2,4032.6,0.44613]
[1760284376952,3.235,4033.2,4033.1,0.44608]
[1760284377251,5.91345672,4033.2,4033.1,0.44608]
[1760284377762,46.71345672,4033.2,4033.1,0.44608]
[1760284379062,46.71345672,4033.2,4032.6,3.2078]
[1760284379063,3.225,4033.1,4033.0,0.44609]
[1760284379458,2.69057027,4033.1,4033.0,0.44609]
[1760284379864,2.69057027,4033.1,4032.9,0.4461]
[1760284380064,3.225,4033.0,4032.9,0.4461]
[1760284380468,5.92620706,4033.0,4032.9,0.4461]
[1760284381165,2.70120706,4033.0,4032.9,3.6588]
[1760284382260,3.225,4032.9,4032.8,0.44611]
[1760284382470,2.60415691,4033.1,4032.6,3.2078]
[1760284382471,2.60415691,4033.1,4033.0,0.44609]
[1760284382770,2.59752118,4033.1,4033.0,0.44609]
[1760284382967,2.59752118,4033.1,4033.0,5.24839]
[1760284383167,0.01,4033.2,4033.0,5.24839]
[1760284383368,0.01,4033.2,4033.1,3.2078]
[1760284383870,0.01,4033.2,4033.0,0.44609]
[1760284383871,3.2201,4033.1,4033.0,0.44609]
[1760284384168,3.2201,4032.9,4032.5,0.00251554]
[1760284384361,3.2201,4032.6,4032.5,0.00251554]
[1760284384763,46.55327054,4032.6,4032.5,0.00251554]
[1760284386174,0.01,4033.2,4032.5,0.00251554]
[1760284386175,0.01,4033.2,4033.1,3.5023]
[1760284386473,0.01,4033.2,4033.1,8.4661793]
[1760284388968,0.00232477,4034.2,4034.1,3.5023]
[1760284390175,0.00232477,4034.2,4034.1,5.25640082]
[1760284390375,0.00232477,4034.2,4034.1,3.5023]
[1760284391674,0.00232477,4034.2,4034.1,9.09695753]
[1760284392477,0.00232477,4034.2,4034.1,3.5023]
[1760284394485,0.00232477,4034.2,4034.1,5.26171368]
[1760284395278,0.00232477,4034.2,4034.1,3.5023]
[1760284396374,3.2201,4036.4,4036.3,0.44572]
[1760284396675,46.8698563,4036.4,4036.3,0.44572]
[1760284396883,46.8698563,4036.4,4036.1,0.44574]
[1760284396884,3.2201,4036.3,4036.1,0.44574]
[1760284397181,6.0698563,4036.2,4036.1,0.00213986]
[1760284397872,46.8698563,4036.2,4036.1,0.00213986]
[1760284398072,44.0201,4036.2,4036.1,0.00213986]
[1760284398267,46.73606835,4036.2,4036.1,0.00213986]
[1760284400080,46.74606835,4036.2,4036.1,0.00213986]
[1760284400973,43.52596835,4036.2,4036.1,3.50443986]
[1760284401174,43.52596835,4036.2,4036.1,0.00213986]
[1760284401175,46.74606835,4036.2,4036.1,0.00213986]
[1760284402176,43.52596835,4036.2,4036.1,3.50443986]
[1760284402377,43.52596835,4036.2,4036.1,0.00213986]
[1760284402683,46.74606835,4036.2,4036.1,0.00213986]
[1760284404881,43.52596835,4036.2,4036.1,3.50443986]
[1760284405082,0.01,4036.2,4036.1,6.71223986]
[1760284405380,2.830571,4036.2,4036.1,6.71223986]
[1760284405774,0.01,4036.2,4036.1,6.71223986]
[1760284406382,5.97515989,4036.2,4036.1,6.71223986]
[1760284406581,2.75505989,4036.2,4036.1,6.71223986]
[1760284407290,5.97515989,4036.2,4036.1,3.20993986]
[1760284407791,2.75505989,4036.2,4036.1,3.20993986]
[1760284408088,5.97515989,4036.2,4036.1,3.20993986]
[1760284408280,2.75505989,4036.2,4036.1,3.20993986]
[1760284408481,2.75505989,4036.2,4036.1,3.50443986]
[1760284409188,2.75505989,4036.2,4036.1,0.00213986]
[1760284409487,5.97515989,4036.2,4036.1,0.00213986]
[1760284410487,2.75505989,4036.2,4036.1,3.50443986]
[1760284410889,5.97515989,4036.2,4036.1,0.00213986]
[1760284411196,6.42089989,4036.2,4036.1,0.00213986]
[1760284411587,5.97515989,4036.2,4036.1,0.44788986]
[1760284411987,2.75505989,4036.2,4036.1,3.95018986]
[1760284412594,0.00220558,4036.3,4036.1,3.95018986]
[1760284412595,0.00220558,4036.3,4036.2,3.74584]
[1760284414390,0.00220558,4036.3,4036.2,3.3001]
[1760284414785,0.00220558,4036.3,4036.2,3.74584]
[1760284415792,2.74919414,4036.3,4036.2,3.74584]
[1760284415990,0.00220558,4036.3,4036.2,3.74584]
[1760284416495,0.00220558,4036.3,4036.2,5.50283355]
[1760284416994,0.00220558,4036.3,4036.2,3.74584]
[1760284418293,0.00220558,4036.3,4036.2,0.44574]
[1760284418491,2.7263348,4036.3,4036.2,3.74584]
[1760284418794,0.00220558,4036.3,4036.2,3.74584]
[1760284420091,3.66382558,4036.3,4036.2,1.75051505]
[1760284420292,6.34748289,4036.3,4036.1,0.00213986]
[1760284420594,3.66169,4035.7,4035.5,1.75208199]
[1760284420794,1.0711,4035.5,4034.9,4.95988199]
[1760284421002,3.2159,4035.0,4034.9,3.2078]
[1760284421293,3.2159,4035.2,4035.0,3.3001]
[1760284421494,3.2159,4035.3,4035.1,1.75182969]
[1760284421701,3.21000558,4036.3,4035.2,1.11461]
[1760284421898,1.97238182,4036.9,4036.4,0.44571]
[1760284422193,42.77238182,4036.9,4036.8,3.3001]
[1760284422594,43.50431496,4036.9,4036.8,3.3001]
[1760284422795,3.66571,4037.4,4036.6,1.75125745]
[1760284423005,3.22290971,4037.4,4036.6,2.19694745]
[1760284423201,3.66575,4037.0,4036.7,0.44568]
[1760284423502,2.80257765,4036.9,4036.8,5.07955745]
[1760284424002,0.00280971,4037.4,4036.9,3.77396]
[1760284424003,2.74460198,4037.0,4036.9,3.77396]
[1760284424200,0.00280971,4037.4,4037.3,3.77391]
[1760284424397,0.00280971,4037.4,4037.3,10.88250585]
[1760284424798,3.2078,4038.6,4038.3,0.4455]
[1760284424993,3.2078,4038.6,4038.4,3.3283]
[1760284425300,3.2078,4038.6,4038.5,4.7288]
[1760284425497,0.44544,4038.9,4038.4,2.19633179]
[1760284425697,2.82392343,4038.6,4038.4,0.00226977]
[1760284426003,3.2201,4038.5,4038.4,0.00226977]
[1760284426302,5.97115839,4038.5,4038.4,0.00226977]
[1760284426904,5.97115839,4038.5,4037.5,3.58905224]
[1760284426905,1.0753,4038.0,4037.3,1.75084179]
[1760284427105,3.6657,4037.4,4037.3,1.75084179]
[1760284427506,3.2201,4037.3,4037.2,3.2078]
[1760284427805,2.65372111,4037.3,4037.2,0.00195419]
[1760284428003,2.65372111,4037.3,4037.2,1.75279598]
[1760284428204,2.65372111,4037.5,4037.3,3.3283]
[1760284428508,3.66568,4037.7,4037.4,3.3283]
[1760284428806,3.66568,4037.7,4037.5,1.74929734]
[1760284429106,3.2201,4038.3,4037.6,3.2078]
[1760284429303,3.2201,4037.7,4037.6,3.2078]
[1760284429498,6.30793716,4037.6,4037.5,1.74929734]
[1760284429808,3.2201,4037.4,4037.3,1.74929734]
[1760284430195,3.66571,4037.3,4037.2,0.00195419]
[1760284430403,5.77907279,4037.4,4036.8,1.74929734]
[1760284430404,12.25735779,4037.4,4036.8,1.74929734]
[1760284430599,2.7412894,4037.3,4037.1,3.3283]
[1760284430800,3.2181,4037.8,4037.0,4.91966021]
[1760284431104,3.2181,4037.4,4037.3,1.74751604]
[1760284431305,3.66371,4037.3,4037.2,1.74751604]
[1760284431497,3.2181,4037.2,4037.1,1.74751604]
[1760284431696,0.44561,4037.3,4037.0,3.2078]
[1760284431697,3.66374,4037.1,4037.0,3.2078]
[1760284431896,3.66374,4037.1,4037.0,3.21034558]
[1760284432103,6.45980817,4037.1,4037.0,3.21034558]
[1760284432506,3.24170817,4037.1,4037.0,3.21034558]
[1760284432807,6.45980817,4037.1,4037.0,3.21034558]
[1760284433302,2.79606817,4037.1,4037.0,3.21034558]
[1760284433502,6.01416817,4037.1,4037.0,3.21034558]
[1760284433716,3.2181,4037.1,4037.0,3.21034558]
[1760284433897,0.44563,4037.2,4037.0,6.53864558]
[1760284434099,2.66775796,4037.1,4037.0,3.21034558]
[1760284434412,3.2181,4037.1,4037.0,3.21034558]
[1760284434708,5.88585796,4037.1,4037.0,0.00254558]
[1760284434908,5.88585796,4037.1,4037.0,1.75041696]
[1760284435104,0.44565,4037.0,4036.9,1.26009729]
[1760284435299,0.44571,4036.5,4036.1,2.63429224]
[1760284435499,3.2181,4036.4,4036.1,2.63429224]
[1760284435702,3.2181,4036.3,4036.1,2.18855224]
[1760284436102,2.87348053,4036.2,4036.1,2.19122364]
[1760284437007,6.09158053,4036.2,4036.1,2.19122364]
[1760284437204,6.09158053,4036.2,4036.1,0.0026714]
[1760284439509,1.11438,4036.1,4035.5,3.2078]
[1760284439813,3.88625512,4036.0,4035.5,3.2078]
[1760284440014,3.2155,4035.8,4035.5,3.2078]
[1760284440315,3.6613,4035.6,4035.5,3.2078]
[1760284440606,6.48412365,4035.6,4035.5,3.20972247]
[1760284440812,4.73277,4035.0,4034.9,3.2078]
[1760284441111,3.15956553,4035.0,4034.9,6.5361]
[1760284441412,43.95956553,4035.0,4034.9,3.2078]
[1760284441608,47.17316553,4035.0,4034.9,3.2078]
[1760284441805,47.17316553,4035.0,4034.9,3.21019524]
[1760284442504,40.8,4035.0,4034.9,11.45815545]
[1760284443012,40.8,4035.0,4034.9,3.21019524]
[1760284443013,46.84508147,4035.0,4034.9,3.21019524]
[1760284443418,40.8,4035.0,4034.9,3.21019524]
[1760284443610,40.8,4035.0,4034.9,6.52109524]
[1760284444213,5.97246989,4035.0,4034.9,3.21019524]
[1760284444617,5.97246989,4035.0,4034.9,6.52109524]
[1760284444618,2.75796989,4035.0,4034.9,6.52109524]
[1760284444912,3.2145,4036.6,4035.7,0.44579]
[1760284445117,0.44579,4035.8,4035.6,6.5187]
[1760284445416,3.2145,4036.1,4035.6,6.5187]
[1760284445417,0.44577,4036.0,4035.7,0.44579]
[1760284445616,3.2145,4036.1,4035.8,1.74589663]
[1760284445917,5.85732346,4035.9,4035.8,2.19167663]
[1760284446117,3.2145,4035.9,4035.8,0.44578]
[1760284446311,3.18650267,4035.9,4035.6,3.6536]
[1760284446511,3.2145,4035.8,4035.6,3.6536]
[1760284447017,44.0145,4036.0,4035.8,0.44578]
[1760284447211,3.2145,4035.9,4035.8,1.74642029]
[1760284447408,6.04667156,4035.9,4035.8,1.74642029]
[1760284448110,2.83217156,4035.9,4035.8,5.05732029]
[1760284448311,3.2145,4035.8,4035.7,0.44579]
[1760284448519,3.2145,4035.8,4035.6,3.6536]
[1760284448717,2.85252876,4035.8,4035.7,0.44578]
[1760284448915,6.06702876,4035.8,4035.7,0.44578]
[1760284449117,3.2127183,4035.9,4035.6,3.6536]
[1760284449319,3.2027283,4035.8,4035.6,3.2078]
[1760284449619,3.2145,4035.7,4035.6,4.95556447]
[1760284449924,5.96689649,4035.7,4035.6,3.2078]
[1760284450322,5.96689649,4035.7,4035.6,6.5187]
[1760284450323,2.75239649,4035.7,4035.6,6.5187]
[1760284450517,0.01,4035.9,4035.7,0.44579]
[1760284450713,0.00220062,4036.1,4035.7,0.44579]
[1760284450714,0.00220062,4036.1,4036.0,5.15186]
[1760284451023,0.00220062,4036.1,4036.0,13.14625893]
[1760284451831,0.00220062,4036.1,4036.0,10.07152021]
[1760284452924,40.8,4037.2,4036.0,10.07152021]
[1760284452925,40.8,4037.2,4037.1,3.3109]
[1760284453127,4.32158,4038.3,4037.4,0.44559]
[1760284453323,3.66011,4037.4,4037.2,3.3109]
[1760284453518,44.46011,4037.4,4037.2,3.3109]
[1760284453725,44.01665279,4037.4,4037.2,3.75652]
[1760284454024,3.66226279,4037.4,4037.1,3.2078]
[1760284454223,3.66226279,4037.4,4037.1,6.96433]
[1760284454530,3.66226279,4037.4,4037.2,0.44562]
[1760284454723,3.2145,4037.3,4037.2,0.44562]
[1760284455024,0.00215279,4037.4,4037.3,3.3109]
[1760284455215,0.00215279,4037.4,4037.2,0.44562]
[1760284455419,3.21665279,4037.4,4037.2,0.44562]
[1760284456235,3.21665279,4037.4,4037.2,2.62832517]
[1760284456423,3.21665279,4037.4,4037.2,5.93922517]
[1760284456629,0.00215279,4037.4,4037.3,3.3109]
[1760284456926,3.21665279,4037.4,4037.3,2.18270517]
[1760284457230,3.21665279,4037.4,4037.2,2.62832517]
[1760284457523,0.00215279,4037.4,4037.2,2.62832517]
[1760284457723,3.2145,4037.3,4037.2,0.44562]
[1760284457924,0.00215279,4037.4,4037.3,3.3109]
[1760284458223,0.00215279,4037.4,4037.3,8.23056021]
[1760284459319,0.00215279,4037.4,4037.3,3.3109]
[1760284460318,0.00215279,4037.4,4037.3,11.30529893]
[1760284460518,3.2145,4038.7,4038.5,0.44548]